bitfinex/quotes_BTCUSD_20240607
["timestamp","ask_amount","ask_price","bid_price","bid_amount"]
[1717738735964,0.00300047,71329.0,71328.0,0.63716324]
[1717738736166,0.00300047,71329.0,71328.0,0.83916324]
[1717738736611,0.00100047,71329.0,71328.0,0.83916324]
[1717738736824,0.00100047,71329.0,71328.0,0.63716324]
[1717738737030,0.00100047,71329.0,71328.0,0.83916324]
[1717738737603,4.7e-07,71329.0,71328.0,0.84216324]
[1717738738010,4.7e-07,71329.0,71328.0,0.84416324]
[1717738738436,4.7e-07,71329.0,71328.0,0.99796324]
[1717738738683,4.7e-07,71329.0,71328.0,0.99596324]
[1717738739031,4.7e-07,71329.0,71328.0,0.99796324]
[1717738740051,4.7e-07,71329.0,71328.0,0.46176324]
[1717738740291,4.7e-07,71329.0,71328.0,0.48176324]
[1717738740292,0.24280047,71329.0,71328.0,0.48176324]
[1717738740491,0.24280047,71329.0,71328.0,0.43697175]
[1717738740713,0.24280047,71329.0,71328.0,0.45697175]
[1717738741320,4.7e-07,71329.0,71328.0,0.49750551]
[1717738741470,4.7e-07,71329.0,71328.0,0.49450551]
[1717738741680,4.7e-07,71329.0,71328.0,0.49550551]
[1717738742088,4.7e-07,71329.0,71328.0,0.49650551]
[1717738742504,4.7e-07,71329.0,71328.0,1.35482896]
[1717738742712,4.7e-07,71329.0,71328.0,1.49924789]
[1717738742918,4.7e-07,71329.0,71328.0,1.57725203]
[1717738743336,4.7e-07,71329.0,71328.0,1.66091093]
[1717738743536,4.7e-07,71329.0,71328.0,1.57825203]
[1717738743735,4.7e-07,71329.0,71328.0,1.83328681]
[1717738743940,4.7e-07,71329.0,71328.0,1.82862305]
[1717738744161,4.7e-07,71329.0,71328.0,2.14601705]
[1717738744337,4.7e-07,71329.0,71328.0,2.14701705]
[1717738745112,4.7e-07,71329.0,71328.0,2.13201705]
[1717738745493,4.7e-07,71329.0,71328.0,2.14601705]
[1717738745724,4.7e-07,71329.0,71328.0,2.21401705]
[1717738745932,4.7e-07,71329.0,71328.0,2.20001705]
[1717738746469,4.7e-07,71329.0,71328.0,2.21401705]
[1717738746684,4.7e-07,71329.0,71328.0,2.20001705]
[1717738747059,4.7e-07,71329.0,71328.0,2.21401705]
[1717738747270,4.7e-07,71329.0,71328.0,2.20479238]
[1717738747472,4.7e-07,71329.0,71328.0,2.21879238]
[1717738747910,4.7e-07,71329.0,71328.0,2.15079238]
[1717738748112,4.7e-07,71329.0,71328.0,2.21879238]
[1717738748324,4.7e-07,71329.0,71328.0,2.21889685]
[1717738748533,4.7e-07,71329.0,71328.0,2.16752583]
[1717738750007,4.7e-07,71329.0,71328.0,2.21887735]
[1717738750471,4.7e-07,71329.0,71328.0,2.16753313]
[1717738752333,4.7e-07,71329.0,71328.0,2.27202468]
[1717738755106,4.7e-07,71329.0,71328.0,2.27763468]
[1717738755331,4.7e-07,71329.0,71328.0,2.17314313]
[1717738758006,4.7e-07,71329.0,71328.0,2.17914313]
[1717738758850,4.7e-07,71329.0,71328.0,2.26268979]
[1717738760311,4.7e-07,71329.0,71328.0,2.26122644]
[1717738763148,4.7e-07,71329.0,71328.0,1.20731351]
[1717738763309,4.7e-07,71329.0,71328.0,1.75119652]
[1717738763516,4.7e-07,71329.0,71328.0,1.94751881]
[1717738763778,4.7e-07,71329.0,71328.0,2.12116329]
[1717738764218,4.7e-07,71329.0,71328.0,2.04449673]
[1717738764411,4.7e-07,71329.0,71328.0,2.08184302]
[1717738764616,4.7e-07,71329.0,71328.0,2.09584302]
[1717738764841,4.7e-07,71329.0,71328.0,2.21427923]
[1717738765041,4.7e-07,71329.0,71328.0,2.18627923]
[1717738765392,4.7e-07,71329.0,71328.0,2.21427923]
[1717738765856,4.7e-07,71329.0,71328.0,2.10984302]
[1717738766566,4.7e-07,71329.0,71328.0,1.81901427]
[1717738766794,4.7e-07,71329.0,71328.0,2.1097545]
[1717738767857,4.7e-07,71329.0,71328.0,1.97657322]
[1717738768266,4.7e-07,71329.0,71328.0,1.87214944]
[1717738768903,4.7e-07,71329.0,71328.0,1.97660018]
[1717738769276,4.7e-07,71329.0,71328.0,2.10414944]
[1717738769935,4.7e-07,71329.0,71328.0,1.87214944]
[1717738770135,4.7e-07,71329.0,71328.0,2.10024003]
[1717738771070,4.7e-07,71329.0,71328.0,2.03224003]
[1717738771303,4.7e-07,71329.0,71328.0,2.10024003]
[1717738772855,4.7e-07,71329.0,71328.0,2.1002378]
[1717738773046,4.7e-07,71329.0,71328.0,2.20033962]
[1717738773274,4.7e-07,71329.0,71328.0,2.22333962]
[1717738774109,0.00086,71335.0,71334.0,0.932927]
[1717738774314,0.00086,71335.0,71334.0,1.62723562]
[1717738774525,0.00086,71335.0,71334.0,1.72723562]
[1717738774958,0.00086,71335.0,71334.0,1.80973562]
[1717738775349,0.00086,71335.0,71334.0,1.90973562]
[1717738775549,0.00086,71335.0,71334.0,1.91973562]
[1717738776109,0.00086,71335.0,71334.0,1.9153511]
[1717738776818,0.00086,71335.0,71334.0,1.91536734]
[1717738777251,0.00086,71345.0,71344.0,0.232]
[1717738777597,0.00016984,71351.0,71344.0,0.232]
[1717738777598,0.00016984,71351.0,71349.0,0.652468]
[1717738777805,0.00016984,71351.0,71349.0,1.45670491]
[1717738778438,0.00016984,71351.0,71349.0,1.73701691]
[1717738779471,0.00016984,71351.0,71349.0,1.75101691]
[1717738779938,0.00016984,71351.0,71349.0,1.75094447]
[1717738780581,0.00016984,71351.0,71349.0,1.76494447]
[1717738781334,0.00016984,71351.0,71349.0,1.84848159]
[1717738782746,0.00016984,71351.0,71349.0,1.8341613]
[1717738784128,0.00016984,71351.0,71349.0,1.85062418]
[1717738784414,0.00016984,71351.0,71349.0,2.18398984]
[1717738784605,0.00016984,71351.0,71349.0,2.07952418]
[1717738784943,0.00016984,71351.0,71349.0,2.48283618]
[1717738785461,6.16492092,71350.0,71349.0,2.48283618]
[1717738785662,6.13392092,71350.0,71349.0,2.48283618]
[1717738786271,6.13392092,71350.0,71349.0,2.46883618]
[1717738786698,6.02773092,71350.0,71349.0,2.56883618]
[1717738786899,5.99673092,71350.0,71349.0,2.56883618]
[1717738787060,5.99673092,71350.0,71349.0,2.88423753]
[1717738787261,5.99673092,71350.0,71349.0,2.8107591]
[1717738787474,5.99673092,71350.0,71349.0,2.97253015]
[1717738787676,5.99673092,71350.0,71349.0,2.98653015]
[1717738788320,5.99673092,71350.0,71349.0,2.8107591]
[1717738788504,5.48863092,71350.0,71349.0,2.64220267]
[1717738788703,5.48863092,71350.0,71349.0,2.74964642]
[1717738788904,5.45763092,71350.0,71349.0,2.77764642]
[1717738789112,5.3971641,71350.0,71349.0,2.77764642]
[1717738789732,5.3971641,71350.0,71349.0,2.82956934]
[1717738789952,5.3971641,71350.0,71349.0,2.77764642]
[1717738790109,5.3971641,71350.0,71349.0,2.76364642]
[1717738790317,5.3521641,71350.0,71349.0,3.7790545]
[1717738790528,5.3471641,71350.0,71349.0,4.01084158]
[1717738790931,5.3471641,71350.0,71349.0,4.02484158]
[1717738791425,5.3371641,71350.0,71349.0,4.01084158]
[1717738792278,5.3371641,71350.0,71349.0,4.14987586]
[1717738794069,5.3211641,71350.0,71349.0,4.14987586]
[1717738794227,5.2721641,71350.0,71349.0,3.89187586]
[1717738794432,5.2721641,71350.0,71349.0,3.95987586]
[1717738794839,5.2721641,71350.0,71349.0,3.68852582]
[1717738797123,5.2532641,71350.0,71349.0,3.68852582]
[1717738797342,5.2367941,71350.0,71349.0,3.68852582]
[1717738797544,5.2101441,71350.0,71349.0,3.68852582]
[1717738797917,5.2033141,71350.0,71349.0,3.68852582]
[1717738798422,5.2021041,71350.0,71349.0,3.68852582]
[1717738798875,5.1653641,71350.0,71349.0,3.68852582]
[1717738799233,5.1491041,71350.0,71349.0,3.68852582]
[1717738800260,5.1491041,71350.0,71349.0,3.58852582]
[1717738800748,5.1491041,71350.0,71349.0,3.00821382]
[1717738800927,5.1491041,71350.0,71349.0,2.93061138]
[1717738801168,5.1491041,71350.0,71349.0,2.83961138]
[1717738801319,5.1491041,71350.0,71349.0,1.34648825]
[1717738801482,5.1491041,71350.0,71349.0,1.38448825]
[1717738801975,5.1491041,71350.0,71349.0,1.61648825]
[1717738802355,5.1491041,71350.0,71349.0,1.35648825]
[1717738802561,5.1491041,71350.0,71349.0,1.42330677]
[1717738802766,5.1491041,71350.0,71349.0,1.48429473]
[1717738802966,5.1491041,71350.0,71349.0,1.45130677]
[1717738803166,5.1491041,71350.0,71349.0,1.70220407]
[1717738803405,5.1491041,71350.0,71349.0,1.45620407]
[1717738803602,5.1491041,71350.0,71349.0,1.36920407]
[1717738803804,5.1491041,71350.0,71349.0,1.49220407]
[1717738804027,5.1491041,71350.0,71349.0,1.53820407]
[1717738804233,5.1491041,71350.0,71349.0,1.73820407]
[1717738804684,5.1491041,71350.0,71349.0,1.63820407]
[1717738804888,5.1491041,71350.0,71349.0,1.73820407]
[1717738806074,5.1491041,71350.0,71349.0,1.50620407]
[1717738806287,5.3814041,71350.0,71349.0,0.7933798]
[1717738807108,5.3814041,71350.0,71349.0,0.8733798]
[1717738807737,5.3814041,71350.0,71349.0,1.0733798]
[1717738808149,5.3814041,71350.0,71349.0,1.1733798]
[1717738808363,5.3814041,71350.0,71349.0,0.9033798]
[1717738808565,5.3814041,71350.0,71349.0,0.9713798]
[1717738808985,5.3814041,71350.0,71349.0,0.9733798]
[1717738809143,5.3814041,71350.0,71349.0,0.9713798]
[1717738809343,5.3814041,71350.0,71349.0,1.1733798]
[1717738809691,5.3814041,71350.0,71349.0,0.9743258]
[1717738809902,5.3814041,71350.0,71349.0,0.97413465]
[1717738810460,5.3814041,71350.0,71349.0,0.97213465]
[1717738810875,5.3814041,71350.0,71349.0,0.97413465]
[1717738811183,5.3814041,71350.0,71349.0,1.17413465]
[1717738811307,5.3814041,71350.0,71349.0,0.97413465]
[1717738811715,5.3814041,71350.0,71349.0,0.97213465]
[1717738813330,5.3814041,71350.0,71349.0,1.17413465]
[1717738813897,5.3814041,71350.0,71349.0,0.97213465]
[1717738814112,5.3814041,71350.0,71349.0,0.97413465]
[1717738814550,5.3814041,71350.0,71349.0,0.97213997]
[1717738815174,5.3814041,71350.0,71349.0,0.97413997]
[1717738815379,5.3814041,71350.0,71349.0,0.90413997]
[1717738815600,5.3814041,71350.0,71349.0,0.97213997]
[1717738815800,5.3814041,71350.0,71349.0,0.97413997]
[1717738816035,5.3814041,71350.0,71349.0,0.97213997]
[1717738816251,5.3814041,71350.0,71349.0,0.97413997]
[1717738816673,5.3814041,71350.0,71349.0,1.17413997]
[1717738816880,5.3814041,71350.0,71349.0,0.97413997]
[1717738817338,5.3814041,71350.0,71349.0,0.88346947]
[1717738817549,5.3814041,71350.0,71349.0,0.68346947]
[1717738818318,5.3814041,71350.0,71349.0,0.68146947]
[1717738818482,5.3814041,71350.0,71349.0,0.65146947]
[1717738819511,5.3814041,71350.0,71349.0,0.68146947]
[1717738819882,5.3814041,71350.0,71349.0,0.68346947]
[1717738820091,5.3814041,71350.0,71349.0,0.68146947]
[1717738821356,5.3814041,71350.0,71349.0,0.68346947]
[1717738821555,5.3814041,71350.0,71349.0,0.68146947]
[1717738823371,5.3814041,71350.0,71349.0,0.88346947]
[1717738823748,5.3814041,71350.0,71349.0,0.68146947]
[1717738824105,5.3814041,71350.0,71349.0,0.68346947]
[1717738824465,5.3814041,71350.0,71349.0,0.68146947]
[1717738824847,5.3814041,71350.0,71349.0,0.65146947]
[1717738825051,5.3814041,71350.0,71349.0,0.68146947]
[1717738825257,5.3814041,71350.0,71349.0,0.65146947]
[1717738825689,5.3814041,71350.0,71349.0,0.68346947]
[1717738826314,5.3814041,71350.0,71349.0,0.65146947]
[1717738826703,5.3814041,71350.0,71349.0,0.68146947]
[1717738828398,5.3814041,71350.0,71349.0,0.65146947]
[1717738828995,5.3814041,71350.0,71349.0,0.68146947]
[1717738829431,5.3814041,71350.0,71349.0,0.65146947]
[1717738830310,5.3814041,71350.0,71349.0,0.68146947]
[1717738831171,5.3814041,71350.0,71349.0,0.60346947]
[1717738831401,5.3814041,71350.0,71349.0,0.67146947]
[1717738831619,5.3814041,71350.0,71349.0,0.68146947]
[1717738832028,5.3814041,71350.0,71349.0,0.67146947]
[1717738832236,5.3814041,71350.0,71349.0,0.65146947]
[1717738832453,5.3814041,71350.0,71349.0,0.68146947]
[1717738833296,5.3814041,71350.0,71349.0,0.67146947]
[1717738833504,5.3814041,71350.0,71349.0,0.68146947]
[1717738835303,5.3814041,71350.0,71349.0,0.68155591]
[1717738836616,5.3814041,71350.0,71349.0,0.73177773]
[1717738837183,5.3814041,71350.0,71349.0,0.72177773]
[1717738837618,5.3814041,71350.0,71349.0,0.65377773]
[1717738837823,5.3814041,71350.0,71349.0,0.62097982]
[1717738838033,5.3814041,71350.0,71349.0,0.65378955]
[1717738839920,5.1491041,71350.0,71349.0,0.32325573]
[1717738840119,5.3885041,71350.0,71349.0,0.32325573]
[1717738840326,5.3885041,71350.0,71349.0,0.22325573]
[1717738840962,5.3885041,71350.0,71349.0,0.21025573]
[1717738841415,5.3885041,71350.0,71349.0,0.21825573]
[1717738841622,5.3885041,71350.0,71349.0,0.20425573]
[1717738842038,5.3885041,71350.0,71349.0,0.20525573]
[1717738842269,5.3885041,71350.0,71349.0,0.19625573]
[1717738842699,5.3885041,71350.0,71349.0,0.20425573]
[1717738843078,5.3885041,71350.0,71349.0,0.19625573]
[1717738843286,5.3885041,71350.0,71349.0,0.20325573]
[1717738843495,5.3885041,71350.0,71349.0,0.21025573]
[1717738844124,5.3885041,71350.0,71349.0,0.20325573]
[1717738844542,5.3885041,71350.0,71349.0,0.20925573]
[1717738847082,5.3885041,71350.0,71349.0,0.21699999]
[1717738854409,5.3885041,71350.0,71349.0,0.2169864]
[1717738859035,5.3885041,71350.0,71349.0,0.22480104]
[1717738861412,5.3885041,71350.0,71349.0,0.20480104]
[1717738861657,5.3885041,71350.0,71349.0,0.22480104]
[1717738861828,5.3885041,71350.0,71349.0,0.20480104]
[1717738862920,5.3885041,71350.0,71349.0,0.22480104]
[1717738871655,5.2275041,71350.0,71349.0,0.22480104]
[1717738874315,5.1491041,71350.0,71349.0,0.22480104]
[1717738874488,5.2250041,71350.0,71349.0,0.22480104]
[1717738877533,5.1491041,71350.0,71349.0,0.22480104]
[1717738885581,5.1491041,71350.0,71349.0,0.39050104]
[1717738885808,5.1491041,71350.0,71349.0,0.57331327]
[1717738886040,5.1491041,71350.0,71349.0,0.65689118]
[1717738889653,5.1491041,71350.0,71349.0,0.94331327]
[1717738889851,5.1491041,71350.0,71349.0,0.99351595]
[1717738890489,5.1491041,71350.0,71349.0,0.79414816]
[1717738890635,5.1491041,71350.0,71349.0,0.99414816]
[1717738890841,5.1491041,71350.0,71349.0,0.99414842]
[1717738891258,5.1491041,71350.0,71349.0,1.41887935]
[1717738891908,5.1491041,71350.0,71349.0,1.54451593]
[1717738892266,5.1491041,71350.0,71349.0,1.53851593]
[1717738892926,5.1491041,71350.0,71349.0,1.55251593]
[1717738893266,5.1491041,71350.0,71349.0,1.54551593]
[1717738893679,5.1491041,71350.0,71349.0,1.55951593]
[1717738893879,5.1491041,71350.0,71349.0,1.82582793]
[1717738894258,5.1491041,71350.0,71349.0,1.83371328]
[1717738894469,5.1491041,71350.0,71349.0,1.91971328]
[1717738894580,5.13349611,71350.0,71349.0,1.91971328]
[1717738894806,5.13349611,71350.0,71349.0,1.93371328]
[1717738895018,5.13349611,71350.0,71349.0,1.85171328]
[1717738895219,5.12999611,71350.0,71349.0,1.91971328]
[1717738895434,5.12999611,71350.0,71349.0,1.90571328]
[1717738895862,5.12999611,71350.0,71349.0,1.91971328]
[1717738896064,5.07203611,71350.0,71349.0,1.91971328]
[1717738896687,5.07203611,71350.0,71349.0,1.93371328]
[1717738896885,5.07203611,71350.0,71349.0,1.91971328]
[1717738897095,5.07203611,71350.0,71349.0,2.04509043]
[1717738897325,5.07203611,71350.0,71349.0,2.05909043]
[1717738897532,5.06803611,71350.0,71349.0,2.05909043]
[1717738898156,5.06803611,71350.0,71349.0,1.93371328]
[1717738898359,5.06803611,71350.0,71349.0,2.21402528]
[1717738899439,5.06803611,71350.0,71349.0,2.20002528]
[1717738899642,5.05203611,71350.0,71349.0,2.20002528]
[1717738899840,5.03403611,71350.0,71349.0,2.20002528]
[1717738900028,5.03103611,71350.0,71349.0,2.20002528]
[1717738900289,5.02103611,71350.0,71349.0,2.18602528]
[1717738900707,5.02103611,71350.0,71349.0,2.20002528]
[1717738900881,5.02103611,71350.0,71349.0,2.18602528]
[1717738901311,5.02103611,71350.0,71349.0,2.20002528]
[1717738901895,5.02103611,71350.0,71349.0,2.21402528]
[1717738902096,5.02103611,71350.0,71349.0,2.18602528]
[1717738902573,5.02103611,71350.0,71349.0,2.20002528]
[1717738902954,5.02103611,71350.0,71349.0,2.18602528]
[1717738903315,5.02103611,71350.0,71349.0,2.22533447]
[1717738903525,5.01903611,71350.0,71349.0,2.22533447]
[1717738903783,5.01903611,71350.0,71349.0,2.23933447]
[1717738904042,5.00403611,71350.0,71349.0,2.22533447]
[1717738904288,5.00403611,71350.0,71349.0,2.23933447]
[1717738904735,4.99003611,71350.0,71349.0,2.23933447]
[1717738905166,4.99003611,71350.0,71349.0,2.22533447]
[1717738905430,4.99003611,71350.0,71349.0,2.26543199]
[1717738905684,4.99003611,71350.0,71349.0,2.27943199]
[1717738905918,4.99003611,71350.0,71349.0,2.29343199]
[1717738906391,4.98303611,71350.0,71349.0,2.27943199]
[1717738906893,4.98303611,71350.0,71349.0,2.27591397]
[1717738907102,4.98303611,71350.0,71349.0,2.28991397]
[1717738909039,4.98303611,71350.0,71349.0,2.18559849]
[1717738909423,4.98303611,71350.0,71349.0,2.34005959]
[1717738909839,4.98303611,71350.0,71349.0,2.28991397]
[1717738910088,4.97803611,71350.0,71349.0,2.28991397]
[1717738910301,4.97803611,71350.0,71349.0,2.23574509]
[1717738910945,4.94603611,71350.0,71349.0,2.23574509]
[1717738911152,4.93603611,71350.0,71349.0,2.34006057]
[1717738911374,4.93603611,71350.0,71349.0,2.23574509]
[1717738912443,4.84303611,71350.0,71349.0,2.23574509]
[1717738913170,4.82803611,71350.0,71349.0,2.23574509]
[1717738913564,4.81403611,71350.0,71349.0,2.23574509]
[1717738914227,4.78603611,71350.0,71349.0,2.23574509]
[1717738914663,4.78003611,71350.0,71349.0,2.23574509]
[1717738915281,4.76693281,71350.0,71349.0,2.23574509]
[1717738915904,4.70593281,71350.0,71349.0,2.23574509]
[1717738916329,4.7038564,71350.0,71349.0,2.23574509]
[1717738916536,4.5659364,71350.0,71349.0,2.23574509]
[1717738916749,4.5499364,71350.0,71349.0,2.23574509]
[1717738918678,4.5499364,71350.0,71349.0,2.16774509]
[1717738918937,4.5499364,71350.0,71349.0,2.23574509]
[1717738920230,4.5189364,71350.0,71349.0,2.23574509]
[1717738920451,4.5039364,71350.0,71349.0,2.23574509]
[1717738923754,4.5039364,71350.0,71349.0,2.22553572]
[1717738927001,4.5039364,71350.0,71349.0,2.15753572]
[1717738927204,4.5039364,71350.0,71349.0,2.35069374]
[1717738929079,4.5039364,71350.0,71349.0,2.11949374]
[1717738929299,4.5039364,71350.0,71349.0,2.06953572]
[1717738934097,4.5039364,71350.0,71349.0,2.25433936]
[1717738935122,4.5039364,71350.0,71349.0,2.06953572]
[1717738936750,4.5039364,71350.0,71349.0,1.98673111]
[1717738936960,4.5039364,71350.0,71349.0,2.07796672]
[1717738939004,4.5039364,71350.0,71349.0,2.00276672]
[1717738940604,4.5039364,71350.0,71349.0,1.77076672]
[1717738940819,4.5039364,71350.0,71349.0,2.00276672]
[1717738941632,4.5039364,71350.0,71349.0,1.77076672]
[1717738941858,4.5039364,71350.0,71349.0,2.00276672]
[1717738942687,4.5039364,71350.0,71349.0,1.77076672]
[1717738943904,4.5039364,71350.0,71349.0,2.00276672]
[1717738945108,4.7442364,71350.0,71349.0,1.24245472]
[1717738945275,4.7442364,71350.0,71349.0,1.39514553]
[1717738945457,4.7442364,71350.0,71349.0,1.72281334]
[1717738946318,4.7442364,71350.0,71349.0,1.58314553]
[1717738946493,4.7442364,71350.0,71349.0,1.56914553]
[1717738946672,4.7442364,71350.0,71349.0,1.59714553]
[1717738947263,4.7378364,71350.0,71349.0,1.58314553]
[1717738947460,4.7378364,71350.0,71349.0,1.58303058]
[1717738947855,4.7378364,71350.0,71349.0,1.59703058]
[1717738948086,4.7378364,71350.0,71349.0,1.58303058]
[1717738949362,4.5807364,71350.0,71349.0,1.58303058]
[1717738949496,4.5807364,71350.0,71349.0,1.59703058]
[1717738949497,4.5039364,71350.0,71349.0,1.59703058]
[1717738951056,4.5039364,71350.0,71349.0,1.72269839]
[1717738952323,4.5039364,71350.0,71349.0,1.59703058]
[1717738956740,4.5039364,71350.0,71349.0,1.85823058]
[1717738956977,4.5039364,71350.0,71349.0,1.93833058]
[1717738957389,4.5039364,71350.0,71349.0,2.06399839]
[1717738958011,4.5039364,71350.0,71349.0,2.04999839]
[1717738959748,4.5039364,71350.0,71349.0,2.06399839]
[1717738959962,4.5039364,71350.0,71349.0,2.03599839]
[1717738960192,4.5039364,71350.0,71349.0,2.04999839]
[1717738960403,4.5039364,71350.0,71349.0,2.06399839]
[1717738960842,4.5039364,71350.0,71349.0,1.92433058]
[1717738961026,4.5039364,71350.0,71349.0,1.93833058]
[1717738961831,4.50278101,71350.0,71349.0,1.69703058]
[1717738962034,4.50278101,71350.0,71349.0,1.93613058]
[1717738962863,4.50278101,71350.0,71349.0,1.94709234]
[1717738964236,4.50278101,71350.0,71349.0,1.71509234]
[1717738964447,4.50278101,71350.0,71349.0,1.94709234]
[1717738964916,4.50278101,71350.0,71349.0,1.78873553]
[1717738965159,4.50278101,71350.0,71349.0,1.9467161]
[1717738965797,4.50278101,71350.0,71349.0,1.7147161]
[1717738967029,4.50278101,71350.0,71349.0,1.64378972]
[1717738967269,4.50278101,71350.0,71349.0,1.71457766]
[1717738967483,4.50278101,71350.0,71349.0,1.94657766]
[1717738967690,4.50278101,71350.0,71349.0,1.71457766]
[1717738968151,4.50278101,71350.0,71349.0,1.84657766]
[1717738968362,4.50278101,71350.0,71349.0,1.94657766]
[1717738969025,4.50278101,71350.0,71349.0,2.08182689]
[1717738972049,4.50278101,71350.0,71349.0,1.84982689]
[1717738972271,4.50278101,71350.0,71349.0,2.08182689]
[1717738973541,4.50278101,71350.0,71349.0,2.07862696]
[1717738973873,4.50278101,71350.0,71349.0,1.84662696]
[1717738974121,4.50278101,71350.0,71349.0,2.07862696]
[1717738974323,4.50278101,71350.0,71349.0,1.84662696]
[1717738974776,4.50278101,71350.0,71349.0,2.07862696]
[1717738975497,4.50278101,71350.0,71349.0,1.84662696]
[1717738976810,4.48317289,71350.0,71349.0,1.97862696]
[1717738977026,4.48317289,71350.0,71349.0,2.07862696]
[1717738977237,4.48317289,71350.0,71349.0,2.26403256]
[1717738977445,4.46921929,71350.0,71349.0,2.07862696]
[1717738979176,4.45321929,71350.0,71349.0,2.07862696]
[1717738979822,4.31592929,71350.0,71349.0,2.35893896]
[1717738980702,4.31592929,71350.0,71349.0,2.29093896]
[1717738980950,4.31592929,71350.0,71349.0,2.35893896]
[1717738981380,4.31592929,71350.0,71349.0,2.12693896]
[1717738981606,4.30992929,71350.0,71349.0,2.35893896]
[1717738982260,4.22662665,71350.0,71349.0,2.35893896]
[1717738982759,4.21162665,71350.0,71349.0,2.35893896]
[1717738983200,4.19562665,71350.0,71349.0,2.35893896]
[1717738984065,4.19562665,71350.0,71349.0,2.29093896]
[1717738984272,4.19562665,71350.0,71349.0,2.35893896]
[1717738984487,4.15062665,71350.0,71349.0,2.35893896]
[1717738985346,4.12062665,71350.0,71349.0,2.35893896]
[1717738986863,4.11762665,71350.0,71349.0,2.35893896]
[1717738987331,4.10049965,71350.0,71349.0,2.35893896]
[1717738987804,4.10049965,71350.0,71349.0,2.54893896]
[1717738987805,4.08542765,71350.0,71349.0,2.54893896]
[1717738989398,4.08542765,71350.0,71349.0,2.31693896]
[1717738989628,4.08542765,71350.0,71349.0,2.54893896]
[1717738989843,4.03942765,71350.0,71349.0,2.31693896]
[1717738990050,4.03942765,71350.0,71349.0,2.54893896]
[1717738990262,4.03942765,71350.0,71349.0,2.31693896]
[1717738990942,4.02442765,71350.0,71349.0,2.31693896]
[1717738991364,4.02142765,71350.0,71349.0,2.31693896]
[1717738991571,3.99742765,71350.0,71349.0,2.31693896]
[1717738991792,3.99742765,71350.0,71349.0,2.31064325]
[1717738991994,3.88570865,71350.0,71349.0,2.64264325]
[1717738992232,3.87070865,71350.0,71349.0,3.07851428]
[1717738992450,3.85570865,71350.0,71349.0,3.21434253]
[1717738992713,3.82944865,71350.0,71349.0,3.44634253]
[1717738993572,3.79460865,71350.0,71349.0,3.21434253]
[1717738993797,3.79460865,71350.0,71349.0,3.44634253]
[1717738993988,3.76430765,71350.0,71349.0,3.44634253]
[1717738995341,3.74652165,71350.0,71349.0,3.44634253]
[1717738996678,3.73052165,71350.0,71349.0,3.44634253]
[1717738997108,3.63826364,71350.0,71349.0,3.44434253]
[1717738997320,3.63826364,71350.0,71349.0,3.44634253]
[1717738997540,3.60573664,71350.0,71349.0,3.44634253]
[1717739000205,3.60173664,71350.0,71349.0,3.44634253]
[1717739001469,3.60173664,71350.0,71349.0,3.4384156]
[1717739003022,3.59573664,71350.0,71349.0,3.4384156]
[1717739003723,3.58373664,71350.0,71349.0,3.4384156]
[1717739003967,3.58373664,71350.0,71349.0,3.2064156]
[1717739004176,3.52863664,71350.0,71349.0,3.4384156]
[1717739004390,3.50253564,71350.0,71349.0,3.2064156]
[1717739005306,3.50253564,71350.0,71349.0,3.20458054]
[1717739006350,3.50253564,71350.0,71349.0,3.20041731]
[1717739006767,3.50253564,71350.0,71349.0,3.36441731]
[1717739006971,3.50253564,71350.0,71349.0,3.43241731]
[1717739007418,3.50253564,71350.0,71349.0,3.36204658]
[1717739007419,3.48653564,71350.0,71349.0,3.36204658]
[1717739007631,3.48653564,71350.0,71349.0,3.20047318]
[1717739007837,3.47153564,71350.0,71349.0,3.20047318]
[1717739008258,3.47153564,71350.0,71349.0,3.43247318]
[1717739009420,3.45353564,71350.0,71349.0,3.43247318]
[1717739009799,3.44053564,71350.0,71349.0,3.43247318]
[1717739012704,0.82058552,71350.0,71349.0,3.43247318]
[1717739012915,0.00086,71350.0,71349.0,3.43247318]
[1717739013133,0.00086,71350.0,71349.0,3.4325968]
[1717739013569,0.00086,71350.0,71349.0,3.4185968]
[1717739014024,0.00086,71350.0,71349.0,3.62187737]
[1717739014227,0.00086,71350.0,71349.0,3.73114537]
[1717739014647,0.00086,71350.0,71349.0,5.35269237]
[1717739015124,0.00086,71350.0,71349.0,5.16176537]
[1717739015531,0.00086,71350.0,71349.0,4.82368803]
[1717739015736,0.00086,71350.0,71349.0,4.968612]
[1717739015948,0.00086,71350.0,71349.0,4.982612]
[1717739016360,0.00086,71350.0,71349.0,4.96897934]
[1717739017355,0.00086,71350.0,71349.0,4.98297934]
[1717739019388,0.00086,71350.0,71349.0,4.98297926]
[1717739020578,0.00086,71350.0,71349.0,5.08297926]
[1717739021409,0.00086,71350.0,71349.0,4.75097926]
[1717739021621,0.00086,71350.0,71349.0,5.08297926]
[1717739022458,0.00086,71350.0,71349.0,4.93645626]
[1717739022682,0.00086,71350.0,71349.0,4.69472926]
[1717739022907,0.00086,71350.0,71349.0,4.76272926]
[1717739023783,0.00086,71350.0,71349.0,4.48241726]
[1717739025917,0.00086,71350.0,71349.0,4.40432926]
[1717739027237,0.00086,71350.0,71349.0,3.75660669]
[1717739027459,0.00086,71350.0,71349.0,3.82460669]
[1717739031377,0.00086,71350.0,71349.0,3.82471452]
[1717739036683,0.00086,71350.0,71349.0,3.59881452]
[1717739036903,0.00086,71350.0,71349.0,3.67891452]
[1717739037573,0.00086,71350.0,71349.0,3.83221452]
[1717739039516,0.00086,71350.0,71349.0,3.53081452]
[1717739039720,0.00086,71350.0,71349.0,3.83171452]
[1717739039959,0.00086,71350.0,71349.0,3.68642329]
[1717739040177,0.00086,71350.0,71349.0,3.52932329]
[1717739041263,0.00086,71350.0,71349.0,3.38552329]
[1717739041479,0.00086,71350.0,71349.0,3.45352329]
[1717739042572,0.00086,71350.0,71349.0,3.22152329]
[1717739042785,0.00086,71350.0,71349.0,3.45352329]
[1717739046108,0.00086,71350.0,71349.0,3.36479392]
[1717739047411,0.00086,71350.0,71349.0,3.70539392]
[1717739053499,0.00086,71350.0,71349.0,3.41539392]
[1717739058053,0.00086,71350.0,71349.0,3.41517661]
[1717739059819,0.00086,71350.0,71349.0,3.55640482]
[1717739060504,0.00086,71350.0,71349.0,3.41517661]
[1717739073150,0.00086,71350.0,71349.0,3.41515221]
[1717739075073,0.00086,71350.0,71349.0,3.14044021]
[1717739075298,0.23546,71350.0,71349.0,3.14044021]
[1717739079353,0.07976,71350.0,71349.0,3.14044021]
[1717739081278,0.07976,71350.0,71349.0,3.14104021]
[1717739082564,0.07976,71350.0,71349.0,3.14692505]
[1717739082789,0.07976,71350.0,71349.0,2.37905402]
[1717739083010,0.07976,71350.0,71349.0,3.05838693]
[1717739083225,0.07976,71350.0,71349.0,3.14692505]
[1717739083423,0.24226,71350.0,71349.0,3.14692505]
[1717739083650,0.00086,71350.0,71349.0,3.14692505]
[1717739091837,0.00086,71350.0,71349.0,2.91492505]
[1717739092044,0.00086,71350.0,71349.0,3.05838693]
[1717739092247,0.00086,71350.0,71349.0,3.14692505]
[1717739093737,0.00086,71350.0,71349.0,3.13969569]
[1717739097390,0.00086,71350.0,71349.0,2.90769569]
[1717739097600,0.00086,71350.0,71349.0,3.13969569]
[1717739097845,0.00086,71350.0,71349.0,2.90769569]